Workbook

Sheet 有形固定資産【千円単位】
A1: 【様式第５号】
A2: 連結附属明細書
A3: １．貸借対照表の内容に関する明細
A4: ※下記以外の資産及び負債のうち、その額が資産総額の100分の5を超える科目についても作成する。
A5: （１）資産項目の明細
B7: ①有形固定資産の明細 | J7: （単位： 千円）
B8: 区分 | D8: 前年度末残高 （A） | E8: 本年度増加額 （B） | F8: 本年度減少額 （C） | G8: 本年度末残高 （A)＋（B)-（C) （D） | H8: 本年度末 減価償却累計額 （E) | I8: 本年度償却額 （F) | J8: 差引本年度末残高 （D)－（E) （G)
B9: 事業用資産 | D9: =ROUND(有形固定資産【円単位】!D9:D9/1000,0) -> 6812418 | E9: =ROUND(有形固定資産【円単位】!E9:E9/1000,0) -> 271904 | F9: =ROUND(有形固定資産【円単位】!F9:F9/1000,0) -> 19238 | G9: =ROUND(有形固定資産【円単位】!G9:G9/1000,0) -> 7065085 | H9: =ROUND(有形固定資産【円単位】!H9:H9/1000,0) -> 4067097 | I9: =ROUND(有形固定資産【円単位】!I9:I9/1000,0) -> 194233 | J9: =ROUND(有形固定資産【円単位】!J9:J9/1000,0) -> 2997988
B10: 土地 | D10: =ROUND(有形固定資産【円単位】!D10:D10/1000,0) -> 149934 | E10: =ROUND(有形固定資産【円単位】!E10:E10/1000,0) -> 373 | F10: =ROUND(有形固定資産【円単位】!F10:F10/1000,0) -> 1006 | G10: =ROUND(有形固定資産【円単位】!G10:G10/1000,0) -> 149301 | H10: =ROUND(有形固定資産【円単位】!H10:H10/1000,0) -> 0 | I10: =ROUND(有形固定資産【円単位】!I10:I10/1000,0) -> 0 | J10: =ROUND(有形固定資産【円単位】!J10:J10/1000,0) -> 149301
B11: 立木竹 | D11: =ROUND(有形固定資産【円単位】!D11:D11/1000,0) -> 0 | E11: =ROUND(有形固定資産【円単位】!E11:E11/1000,0) -> 0 | F11: =ROUND(有形固定資産【円単位】!F11:F11/1000,0) -> 0 | G11: =ROUND(有形固定資産【円単位】!G11:G11/1000,0) -> 0 | H11: =ROUND(有形固定資産【円単位】!H11:H11/1000,0) -> 0 | I11: =ROUND(有形固定資産【円単位】!I11:I11/1000,0) -> 0 | J11: =ROUND(有形固定資産【円単位】!J11:J11/1000,0) -> 0
B12: 建物 | D12: =ROUND(有形固定資産【円単位】!D12:D12/1000,0) -> 5665303 | E12: =ROUND(有形固定資産【円単位】!E12:E12/1000,0) -> 36995 | F12: =ROUND(有形固定資産【円単位】!F12:F12/1000,0) -> 9212 | G12: =ROUND(有形固定資産【円単位】!G12:G12/1000,0) -> 5693087 | H12: =ROUND(有形固定資産【円単位】!H12:H12/1000,0) -> 3400619 | I12: =ROUND(有形固定資産【円単位】!I12:I12/1000,0) -> 158552 | J12: =ROUND(有形固定資産【円単位】!J12:J12/1000,0) -> 2292468
B13: 工作物 | D13: =ROUND(有形固定資産【円単位】!D13:D13/1000,0) -> 649342 | E13: =ROUND(有形固定資産【円単位】!E13:E13/1000,0) -> 27503 | F13: =ROUND(有形固定資産【円単位】!F13:F13/1000,0) -> 0 | G13: =ROUND(有形固定資産【円単位】!G13:G13/1000,0) -> 676845 | H13: =ROUND(有形固定資産【円単位】!H13:H13/1000,0) -> 338011 | I13: =ROUND(有形固定資産【円単位】!I13:I13/1000,0) -> 33339 | J13: =ROUND(有形固定資産【円単位】!J13:J13/1000,0) -> 338834
B14: 船舶 | D14: =ROUND(有形固定資産【円単位】!D14:D14/1000,0) -> 338819 | E14: =ROUND(有形固定資産【円単位】!E14:E14/1000,0) -> 99000 | F14: =ROUND(有形固定資産【円単位】!F14:F14/1000,0) -> 0 | G14: =ROUND(有形固定資産【円単位】!G14:G14/1000,0) -> 437819 | H14: =ROUND(有形固定資産【円単位】!H14:H14/1000,0) -> 328467 | I14: =ROUND(有形固定資産【円単位】!I14:I14/1000,0) -> 2342 | J14: =ROUND(有形固定資産【円単位】!J14:J14/1000,0) -> 109352
B15: 浮標等 | D15: =ROUND(有形固定資産【円単位】!D15:D15/1000,0) -> 0 | E15: =ROUND(有形固定資産【円単位】!E15:E15/1000,0) -> 0 | F15: =ROUND(有形固定資産【円単位】!F15:F15/1000,0) -> 0 | G15: =ROUND(有形固定資産【円単位】!G15:G15/1000,0) -> 0 | H15: =ROUND(有形固定資産【円単位】!H15:H15/1000,0) -> 0 | I15: =ROUND(有形固定資産【円単位】!I15:I15/1000,0) -> 0 | J15: =ROUND(有形固定資産【円単位】!J15:J15/1000,0) -> 0
B16: 航空機 | D16: =ROUND(有形固定資産【円単位】!D16:D16/1000,0) -> 0 | E16: =ROUND(有形固定資産【円単位】!E16:E16/1000,0) -> 0 | F16: =ROUND(有形固定資産【円単位】!F16:F16/1000,0) -> 0 | G16: =ROUND(有形固定資産【円単位】!G16:G16/1000,0) -> 0 | H16: =ROUND(有形固定資産【円単位】!H16:H16/1000,0) -> 0 | I16: =ROUND(有形固定資産【円単位】!I16:I16/1000,0) -> 0 | J16: =ROUND(有形固定資産【円単位】!J16:J16/1000,0) -> 0
B17: その他 | D17: =ROUND(有形固定資産【円単位】!D17:D17/1000,0) -> 0 | E17: =ROUND(有形固定資産【円単位】!E17:E17/1000,0) -> 0 | F17: =ROUND(有形固定資産【円単位】!F17:F17/1000,0) -> 0 | G17: =ROUND(有形固定資産【円単位】!G17:G17/1000,0) -> 0 | H17: =ROUND(有形固定資産【円単位】!H17:H17/1000,0) -> 0 | I17: =ROUND(有形固定資産【円単位】!I17:I17/1000,0) -> 0 | J17: =ROUND(有形固定資産【円単位】!J17:J17/1000,0) -> 0
B18: 建設仮勘定 | D18: =ROUND(有形固定資産【円単位】!D18:D18/1000,0) -> 9020 | E18: =ROUND(有形固定資産【円単位】!E18:E18/1000,0) -> 108034 | F18: =ROUND(有形固定資産【円単位】!F18:F18/1000,0) -> 9020 | G18: =ROUND(有形固定資産【円単位】!G18:G18/1000,0) -> 108034 | H18: =ROUND(有形固定資産【円単位】!H18:H18/1000,0) -> 0 | I18: =ROUND(有形固定資産【円単位】!I18:I18/1000,0) -> 0 | J18: =ROUND(有形固定資産【円単位】!J18:J18/1000,0) -> 108034
B19: インフラ資産 | D19: =ROUND(有形固定資産【円単位】!D19:D19/1000,0) -> 10271242 | E19: =ROUND(有形固定資産【円単位】!E19:E19/1000,0) -> 1662471 | F19: =ROUND(有形固定資産【円単位】!F19:F19/1000,0) -> 1007123 | G19: =ROUND(有形固定資産【円単位】!G19:G19/1000,0) -> 10926590 | H19: =ROUND(有形固定資産【円単位】!H19:H19/1000,0) -> 5929055 | I19: =ROUND(有形固定資産【円単位】!I19:I19/1000,0) -> 292239 | J19: =ROUND(有形固定資産【円単位】!J19:J19/1000,0) -> 4997535
B20: 土地 | D20: =ROUND(有形固定資産【円単位】!D20:D20/1000,0) -> 57574 | E20: =ROUND(有形固定資産【円単位】!E20:E20/1000,0) -> 2300 | F20: =ROUND(有形固定資産【円単位】!F20:F20/1000,0) -> 0 | G20: =ROUND(有形固定資産【円単位】!G20:G20/1000,0) -> 59874 | H20: =ROUND(有形固定資産【円単位】!H20:H20/1000,0) -> 0 | I20: =ROUND(有形固定資産【円単位】!I20:I20/1000,0) -> 0 | J20: =ROUND(有形固定資産【円単位】!J20:J20/1000,0) -> 59874
B21: 建物 | D21: =ROUND(有形固定資産【円単位】!D21:D21/1000,0) -> 157333 | E21: =ROUND(有形固定資産【円単位】!E21:E21/1000,0) -> 198062 | F21: =ROUND(有形固定資産【円単位】!F21:F21/1000,0) -> 100526 | G21: =ROUND(有形固定資産【円単位】!G21:G21/1000,0) -> 254869 | H21: =ROUND(有形固定資産【円単位】!H21:H21/1000,0) -> 33816 | I21: =ROUND(有形固定資産【円単位】!I21:I21/1000,0) -> 12541 | J21: =ROUND(有形固定資産【円単位】!J21:J21/1000,0) -> 221053
B22: 工作物 | D22: =ROUND(有形固定資産【円単位】!D22:D22/1000,0) -> 10054873 | E22: =ROUND(有形固定資産【円単位】!E22:E22/1000,0) -> 1313807 | F22: =ROUND(有形固定資産【円単位】!F22:F22/1000,0) -> 801044 | G22: =ROUND(有形固定資産【円単位】!G22:G22/1000,0) -> 10567636 | H22: =ROUND(有形固定資産【円単位】!H22:H22/1000,0) -> 5895239 | I22: =ROUND(有形固定資産【円単位】!I22:I22/1000,0) -> 279698 | J22: =ROUND(有形固定資産【円単位】!J22:J22/1000,0) -> 4672397
B23: その他 | D23: =ROUND(有形固定資産【円単位】!D23:D23/1000,0) -> 0 | E23: =ROUND(有形固定資産【円単位】!E23:E23/1000,0) -> 2176 | F23: =ROUND(有形固定資産【円単位】!F23:F23/1000,0) -> 0 | G23: =ROUND(有形固定資産【円単位】!G23:G23/1000,0) -> 2176 | H23: =ROUND(有形固定資産【円単位】!H23:H23/1000,0) -> 0 | I23: =ROUND(有形固定資産【円単位】!I23:I23/1000,0) -> 0 | J23: =ROUND(有形固定資産【円単位】!J23:J23/1000,0) -> 2176
B24: 建設仮勘定 | D24: =ROUND(有形固定資産【円単位】!D24:D24/1000,0) -> 1463 | E24: =ROUND(有形固定資産【円単位】!E24:E24/1000,0) -> 146125 | F24: =ROUND(有形固定資産【円単位】!F24:F24/1000,0) -> 105553 | G24: =ROUND(有形固定資産【円単位】!G24:G24/1000,0) -> 42035 | H24: =ROUND(有形固定資産【円単位】!H24:H24/1000,0) -> 0 | I24: =ROUND(有形固定資産【円単位】!I24:I24/1000,0) -> 0 | J24: =ROUND(有形固定資産【円単位】!J24:J24/1000,0) -> 42035
B25: 物品 | D25: =ROUND(有形固定資産【円単位】!D25:D25/1000,0) -> 1009264 | E25: =ROUND(有形固定資産【円単位】!E25:E25/1000,0) -> 27745 | F25: =ROUND(有形固定資産【円単位】!F25:F25/1000,0) -> 179 | G25: =ROUND(有形固定資産【円単位】!G25:G25/1000,0) -> 1036831 | H25: =ROUND(有形固定資産【円単位】!H25:H25/1000,0) -> 931313 | I25: =ROUND(有形固定資産【円単位】!I25:I25/1000,0) -> 71800 | J25: =ROUND(有形固定資産【円単位】!J25:J25/1000,0) -> 105517
B26: 合計 | D26: =ROUND(有形固定資産【円単位】!D26:D26/1000,0) -> 18092924 | E26: =ROUND(有形固定資産【円単位】!E26:E26/1000,0) -> 1962121 | F26: =ROUND(有形固定資産【円単位】!F26:F26/1000,0) -> 1026539 | G26: =ROUND(有形固定資産【円単位】!G26:G26/1000,0) -> 19028506 | H26: =ROUND(有形固定資産【円単位】!H26:H26/1000,0) -> 10927465 | I26: =ROUND(有形固定資産【円単位】!I26:I26/1000,0) -> 558272 | J26: =ROUND(有形固定資産【円単位】!J26:J26/1000,0) -> 8101041

Sheet 有形固定資産【円単位】
A1: 【様式第５号】
A2: 連結附属明細書
A3: １．貸借対照表の内容に関する明細
A4: ※下記以外の資産及び負債のうち、その額が資産総額の100分の5を超える科目についても作成する。
A5: （１）資産項目の明細
B7: ①有形固定資産の明細 | J7: （単位： 円）
B8: 区分 | D8: 前年度末残高 （A） | E8: 本年度増加額 （B） | F8: 本年度減少額 （C） | G8: 本年度末残高 （A)＋（B)-（C) （D） | H8: 本年度末 減価償却累計額 （E) | I8: 本年度償却額 （F) | J8: 差引本年度末残高 （D)－（E) （G)
B9: 事業用資産 | D9: 6812418032 | E9: 271904320 | F9: 19237520 | G9: 7065084832 | H9: 4067096562 | I9: 194232978 | J9: 2997988270
B10: 土地 | D10: 149934171 | E10: 372815 | F10: 1006020 | G10: 149300966 | H10: 0 | I10: 0 | J10: 149300966
B11: 立木竹 | D11: 0 | E11: 0 | F11: 0 | G11: 0 | H11: 0 | I11: 0 | J11: 0
B12: 建物 | D12: 5665303366 | E12: 36994870 | F12: 9211500 | G12: 5693086736 | H12: 3400618752 | I12: 158551887 | J12: 2292467984
B13: 工作物 | D13: 649341550 | E13: 27503133 | F13: 0 | G13: 676844683 | H13: 338010639 | I13: 33338941 | J13: 338834044
B14: 船舶 | D14: 338818945 | E14: 98999999 | F14: 0 | G14: 437818944 | H14: 328467171 | I14: 2342150 | J14: 109351773
B15: 浮標等 | D15: 0 | E15: 0 | F15: 0 | G15: 0 | H15: 0 | I15: 0 | J15: 0
B16: 航空機 | D16: 0 | E16: 0 | F16: 0 | G16: 0 | H16: 0 | I16: 0 | J16: 0
B17: その他 | D17: 0 | E17: 0 | F17: 0 | G17: 0 | H17: 0 | I17: 0 | J17: 0
B18: 建設仮勘定 | D18: 9020000 | E18: 108033503 | F18: 9020000 | G18: 108033503 | H18: 0 | I18: 0 | J18: 108033503
B19: インフラ資産 | D19: 10271242016 | E19: 1662471178 | F19: 1007122791 | G19: 10926590403 | H19: 5929055308 | I19: 292239075 | J19: 4997535095
B20: 土地 | D20: 57573809 | E20: 2300305 | F20: 0 | G20: 59874114 | H20: 0 | I20: 0 | J20: 59874114
B21: 建物 | D21: 157332515 | E21: 198062115 | F21: 100525823 | G21: 254868807 | H21: 33815898 | I21: 12541419 | J21: 221052909
B22: 工作物 | D22: 10054872692 | E22: 1313807486 | F22: 801044096 | G22: 10567636082 | H22: 5895239410 | I22: 279697656 | J22: 4672396672
B23: その他 | D23: 0 | E23: 2176000 | F23: 0 | G23: 2176000 | H23: 0 | I23: 0 | J23: 2176000
B24: 建設仮勘定 | D24: 1463000 | E24: 146125272 | F24: 105552872 | G24: 42035400 | H24: 0 | I24: 0 | J24: 42035400
B25: 物品 | D25: 1009264169 | E25: 27745241 | F25: 178660 | G25: 1036830750 | H25: 931313471 | I25: 71799684 | J25: 105517279
B26: 合計 | D26: 18092924217 | E26: 1962120739 | F26: 1026538971 | G26: 19028505985 | H26: 10927465341 | I26: 558271737 | J26: 8101040644
